fUSD/lending_fUSD_20241129
["ID","MTS","AMOUNT","RATE_DAILY","PERIOD"]
[343703841,1732887489278,500.0,0.00027,90]
[343703842,1732887489330,500.0,0.00027,90]
[343703843,1732887489378,617.91,0.00027,90]
[343703844,1732887489430,500.0,0.00027,90]
[343703845,1732887489495,2327.14,0.00027,90]
[343703846,1732887489549,500.0,0.00027,90]
[343703847,1732887489602,500.0,0.00027,90]
[343703848,1732887489650,617.91,0.00027,90]
[343703849,1732887489700,500.0,0.00027,90]
[343703850,1732887489767,500.0,0.00027,90]
[343703851,1732887489997,2327.14,0.00027,90]
[343703852,1732887490067,500.0,0.00027,90]
[343703853,1732887490119,617.91,0.00027,90]
[343703854,1732887490177,500.0,0.00027,90]
[343703855,1732887490221,508.42326735,0.00027,90]
[343703856,1732887490266,2327.14,0.00027,90]
[343703857,1732887490314,500.0,0.00027,90]
[343703858,1732887490362,617.91,0.00027,90]
[343703859,1732887490414,500.0,0.00027,90]
[343703860,1732887490480,2327.14,0.00027,90]
[343703861,1732887490536,500.0,0.00027,90]
[343703862,1732887490584,617.91,0.00027,90]
[343703863,1732887490631,500.0,0.00027,90]
[343703864,1732887490674,2327.14,0.00027,90]
[343703865,1732887490730,425.41154647,0.00027,90]
[343703866,1732887490793,617.93884031,0.00027,90]
[343703867,1732887490840,500.0,0.00027,90]
[343703868,1732887490884,2327.14,0.00027,90]
[343703869,1732887491097,2327.14,0.00027,90]
[343703870,1732887491148,500.0,0.00027,90]
[343703871,1732887491367,2327.14,0.00027,90]
[343703872,1732887491416,500.0,0.00027,90]
[343703873,1732887491620,2327.14,0.00027,90]
[343703874,1732887491675,500.0,0.00027,90]
[343703875,1732887491910,2327.14,0.00027,90]
[343703876,1732887491953,182.07135527,0.00027,90]
[343703877,1732887492182,2327.14,0.00027,90]
[343703878,1732887492477,2327.14,0.00027,90]
[343703879,1732887492630,615.56863488,0.00027,90]
[343703880,1732887492739,2327.14,0.00027,90]
[343703881,1732887492872,500.0,0.00027,90]
[343703882,1732887492997,2327.14,0.00027,90]
[343703883,1732887493139,500.0,0.00027,90]
[343703884,1732887493290,2327.14,0.00027,90]
[343703885,1732887493498,500.0,0.00027,90]
[343703886,1732887493548,2327.14,0.00027,90]
[343703887,1732887493821,500.0,0.00027,90]
[343703888,1732887493875,2327.14,0.00027,90]
[343703889,1732887494112,2327.36224059,0.00027,90]
[343703890,1732887494186,500.0,0.00027,90]
[343703891,1732887494593,500.0,0.00027,90]
[343703892,1732887494651,500.0,0.00027,90]
[343703893,1732887494708,500.0,0.00027,90]
[343703894,1732887494764,500.0,0.00027,90]
[343703895,1732887494829,500.0,0.00027,90]
[343703896,1732887494877,504.48661015,0.00027,90]
[343703897,1732887494925,500.0,0.00027,90]
[343703898,1732887495028,500.0,0.00027,90]
[343703899,1732887495118,500.0,0.00027,90]
[343703900,1732887495341,500.0,0.00027,90]
[343703901,1732887495404,500.0,0.00027,90]
[343703902,1732887495608,500.0,0.00027,90]
[343703903,1732887495657,500.0,0.00027,90]
[343703904,1732887495706,500.0,0.00027,90]
[343703905,1732887495887,400.71,0.00027,90]
[343703906,1732887495935,500.0,0.00027,90]
[343703907,1732887495983,500.0,0.00027,90]
[343703908,1732887496164,500.0,0.00027,90]
[343703909,1732887496217,500.0,0.00027,90]
[343703910,1732887496600,344.26099845,0.00027,90]
[343703911,1732887496650,270.78458771,0.00027,90]
[343703912,1732887496700,500.0,0.00027,90]
[343703913,1732887496749,1198.4,0.00027,90]
[343703914,1732887496801,501.89409145,0.00027,90]
[343703915,1732887496863,500.0,0.00027,90]
[343703916,1732887496992,1198.4,0.00027,90]
[343703917,1732887497070,500.0,0.00027,90]
[343703918,1732887497249,1198.4,0.00027,90]
[343703919,1732887497338,500.0,0.00027,90]
[343703920,1732887497523,1198.4,0.00027,90]
[343703921,1732887497599,500.0,0.00027,90]
[343703922,1732887497818,500.0,0.00027,90]
[343703923,1732887497869,500.0,0.00027,90]
[343703924,1732887497916,1198.4,0.00027,90]
[343703925,1732887498115,500.0,0.00027,90]
[343703926,1732887498165,500.0,0.00027,90]
[343703927,1732887498216,1198.4,0.00027,90]
[343703928,1732887498264,500.0,0.00027,90]
[343703929,1732887498386,500.0,0.00027,90]
[343703930,1732887498437,500.0,0.00027,90]
[343703931,1732887498488,1198.4,0.00027,90]
[343703932,1732887498539,500.0,0.00027,90]
[343703933,1732887498589,914.42,0.00027,90]
[343703934,1732887498659,500.0,0.00027,90]
[343703935,1732887498716,1198.4,0.00027,90]
[343703936,1732887498764,500.0,0.00027,90]
[343703937,1732887498815,500.0,0.00027,90]
[343703938,1732887498862,150.0,0.00027,90]
[343703939,1732887498911,500.0,0.00027,90]
[343703940,1732887498959,914.42,0.00027,90]
[343703941,1732887499007,500.0,0.00027,90]
[343703942,1732887499054,500.0,0.00027,90]
[343703943,1732887499104,1198.4,0.00027,90]
[343703944,1732887499152,500.0,0.00027,90]
[343703945,1732887499202,914.42,0.00027,90]
[343703946,1732887499248,500.0,0.00027,90]
[343703947,1732887499301,500.0,0.00027,90]
[343703948,1732887499356,500.0,0.00027,90]
[343703949,1732887499402,1198.4,0.00027,90]
[343703950,1732887499449,500.0,0.00027,90]
[343703951,1732887499496,150.0,0.00027,90]
[343703952,1732887499544,914.42,0.00027,90]
[343703953,1732887499590,500.0,0.00027,90]
[343703954,1732887499637,234.48459816,0.00027,90]
[343703955,1732887499684,500.0,0.00027,90]
[343703956,1732887499729,1198.4,0.00027,90]
[343703957,1732887499777,500.0,0.00027,90]
[343703958,1732887499838,150.0,0.00027,90]
[343703959,1732887499892,914.42,0.00027,90]
[343703960,1732887499938,500.0,0.00027,90]
[343703961,1732887499988,500.0,0.00027,90]
[343703962,1732887500034,1198.4,0.00027,90]
[343703963,1732887500099,150.0,0.00027,90]
[343703964,1732887500143,914.42,0.00027,90]
[343703965,1732887500187,500.0,0.00027,90]
[343703966,1732887500229,500.0,0.00027,90]
[343703967,1732887500271,1198.4,0.00027,90]
[343703968,1732887500320,150.0,0.00027,90]
[343703969,1732887500360,500.0,0.00027,90]
[343703970,1732887500401,914.42,0.00027,90]
[343703971,1732887500447,500.0,0.00027,90]
[343703972,1732887500491,1198.4,0.00027,90]
[343703973,1732887500537,252.4695297,0.00027,90]
[343703974,1732887500587,150.0,0.00027,90]
[343703975,1732887500636,914.42,0.00027,90]
[343703976,1732887500715,500.0,0.00027,90]
[343703977,1732887500759,1198.4,0.00027,90]
[343703978,1732887500832,914.42,0.00027,90]
[343703979,1732887500882,154.10664486,0.00027,90]
[343703980,1732887500930,500.0,0.00027,90]
[343703981,1732887500973,1198.4,0.00027,90]
[343703982,1732887501036,914.42,0.00027,90]
[343703983,1732887501190,1198.4,0.00027,90]
[343703984,1732887501236,500.0,0.00027,90]
[343703985,1732887501406,914.42,0.00027,90]
[343703986,1732887501478,1198.4,0.00027,90]
[343703987,1732887501525,476.32994472,0.00027,90]
[343703988,1732887501661,914.42,0.00027,90]
[343703989,1732887502115,914.42,0.00027,90]
[343703990,1732887502165,1198.4,0.00027,90]
[343703991,1732887502210,914.42,0.00027,90]
[343703992,1732887502434,1198.4,0.00027,90]
[343703993,1732887502485,914.42,0.00027,90]
[343703994,1732887502709,1198.4,0.00027,90]
[343703995,1732887502754,914.42,0.00027,90]
[343703996,1732887502865,500.0,0.00027,90]
[343703997,1732887503000,1198.4,0.00027,90]
[343703998,1732887503045,914.42,0.00027,90]
[343703999,1732887503155,500.0,0.00027,90]
[343704000,1732887503289,914.42,0.00027,90]
[343704001,1732887503337,1198.4,0.00027,90]
[343704002,1732887503423,500.0,0.00027,90]
[343704003,1732887503497,500.0,0.00027,90]
[343704004,1732887503570,1198.51314304,0.00027,90]
[343704005,1732887503656,500.0,0.00027,90]
[343704006,1732887503730,500.0,0.00027,90]
[343704007,1732887503779,500.0,0.00027,90]
[343704008,1732887503890,914.42,0.00027,90]
[343704009,1732887503937,500.0,0.00027,90]
[343704010,1732887504011,500.0,0.00027,90]
[343704011,1732887504059,500.0,0.00027,90]
[343704012,1732887504168,914.42,0.00027,90]
[343704013,1732887504218,500.0,0.00027,90]
[343704014,1732887504302,500.0,0.00027,90]
[343704015,1732887504353,500.0,0.00027,90]
[343704016,1732887504427,914.42,0.00027,90]
[343704017,1732887504494,500.0,0.00027,90]
[343704018,1732887504589,500.0,0.00027,90]
[343704019,1732887505037,500.0,0.00027,90]
[343704020,1732887505089,914.42,0.00027,90]
[343704021,1732887505144,319.6422878,0.00027,90]
[343704022,1732887505193,914.42,0.00027,90]
[343704023,1732887505242,500.0,0.00027,90]
[343704024,1732887505306,503.13440262,0.00027,90]
[343704025,1732887505357,500.0,0.00027,90]
[343704026,1732887505409,914.49271372,0.00027,90]
[343704027,1732887505639,500.0,0.00027,90]
[343704028,1732887505922,500.0,0.00027,90]
[343704029,1732887505972,500.0,0.00027,90]
[343704030,1732887506020,500.0,0.00027,90]
[343704031,1732887506111,500.0,0.00027,90]
[343704032,1732887506201,500.0,0.00027,90]
[343704033,1732887506253,500.0,0.00027,90]
[343704034,1732887506410,500.0,0.00027,90]
[343704035,1732887506465,500.0,0.00027,90]
[343704036,1732887506681,500.0,0.00027,90]
[343704037,1732887506737,517.43501098,0.00027,90]
[343704038,1732887506812,500.0,0.00027,90]
[343704039,1732887507107,500.0,0.00027,90]
[343704040,1732887507211,500.0,0.00027,90]
[343704041,1732887507315,500.0,0.00027,90]
[343704042,1732887507455,500.0,0.00027,90]
[343704043,1732887507505,500.0,0.00027,90]
[343704044,1732887507555,500.0,0.00027,90]
[343704045,1732887507608,223.92746605,0.00027,90]
[343704046,1732887507726,500.0,0.00027,90]
[343704047,1732887507774,500.0,0.00027,90]
[343704048,1732887507986,500.0,0.00027,90]
[343704049,1732887508062,500.0,0.00027,90]
[343704050,1732887508243,500.0,0.00027,90]
[343704051,1732887508327,500.0,0.00027,90]
[343704052,1732887508626,500.0,0.00027,90]
[343704053,1732887508854,500.0,0.00027,90]
[343704054,1732887508970,500.0,0.00027,90]
[343704055,1732887509018,500.0,0.00027,90]
[343704056,1732887509158,537.39573752,0.00027,90]
[343704057,1732887509266,500.0,0.00027,90]
[343704058,1732887509313,500.0,0.00027,90]
[343704059,1732887509534,500.0,0.00027,90]
[343704060,1732887509584,500.0,0.00027,90]
[343704061,1732887509645,5000.0,0.00027,90]
[343704062,1732887509805,500.0,0.00027,90]
[343704063,1732887509856,500.0,0.00027,90]
[343704064,1732887509943,4008.38428705,0.00027,90]
[343704065,1732887510070,500.0,0.00027,90]
[343704066,1732887510683,500.0,0.00027,90]
[343704067,1732887510977,565.50670375,0.00027,90]
[343704068,1732887511694,500.0,0.00027,90]
[343704069,1732887511899,500.0,0.00027,90]
[343704070,1732887511954,502.18206521,0.00027,90]
[343704071,1732887512160,500.0,0.00027,90]
[343704072,1732887512458,500.0,0.00027,90]
[343704073,1732887512687,500.0,0.00027,90]
[343704074,1732887512779,111.70536623,0.00027,90]
[343704075,1732887547829,1800.0,0.00024,60]
[343704079,1732887818300,200.0,0.0002472,120]
[343704091,1732888076339,-885.23,8.219e-05,2]
[343704096,1732888204443,14.77,8.219e-05,2]
[343704098,1732888231837,-135.23,8.219e-05,2]
[343704099,1732888231846,-150.0,8.219e-05,2]
[343704100,1732888231855,-150.0,8.219e-05,2]
[343704101,1732888231864,-150.0,8.219e-05,2]
[343704102,1732888231873,-150.0,8.219e-05,2]
[343704103,1732888231884,-150.0,8.219e-05,2]
[343704104,1732888231893,-150.0,8.219e-05,2]
[343704105,1732888231903,-280.87610536,8.219e-05,2]
[343704106,1732888231912,-250.0,9.498e-05,2]
[343704107,1732888231921,-1000.0,9.547e-05,2]
[343704108,1732888231931,-160.55,9.589e-05,2]
[343704109,1732888231941,-500.0,9.699e-05,2]
[343704110,1732888231951,-150.0,9.863e-05,2]
[343704111,1732888231960,-1000.0,9.9e-05,2]
[343704112,1732888231970,-2500.0,9.9e-05,2]
[343704113,1732888231979,-500.0,9.92e-05,2]
[343704114,1732888231989,-500.0,9.973e-05,2]
[343704115,1732888231998,-252.88455,9.996e-05,2]
[343704116,1732888232008,-157.585387,9.996e-05,2]
[343704117,1732888232017,-293.759899,9.996e-05,2]
[343704118,1732888232028,-112.98142588,9.996e-05,2]
[343704119,1732888232042,-37.21583912,9.996e-05,2]
[343704120,1732888232053,-1275.2623039,9.996e-05,2]
[343704121,1732888232063,-3226.0555745,9.996e-05,2]
[343704122,1732888232072,-4796.6258765,9.996e-05,2]
[343704123,1732888232081,-252.88455,9.997e-05,2]
[343704124,1732888232090,-252.88455,9.997e-05,2]
[343704125,1732888232099,-293.759899,9.997e-05,2]
[343704126,1732888232109,-293.759899,9.997e-05,2]
[343704127,1732888232118,-252.88455,9.999e-05,2]
[343704128,1732888232137,-252.88455,9.999e-05,2]
[343704129,1732888232147,-252.88455,9.999e-05,2]
[343704130,1732888232159,-252.88455,9.999e-05,2]
[343704131,1732888232170,-252.88455,9.999e-05,2]
[343704132,1732888232182,-252.88455,9.999e-05,2]
[343704133,1732888232192,-252.88455,9.999e-05,2]
[343704134,1732888232202,-252.88455,9.999e-05,2]
[343704135,1732888232213,-252.88455,9.999e-05,2]
[343704136,1732888232224,-252.88455,9.999e-05,2]
[343704137,1732888232235,-293.759899,9.999e-05,2]
[343704138,1732888232244,-293.759899,9.999e-05,2]
[343704139,1732888232253,-150.197265,9.999e-05,2]
[343704140,1732888232262,-293.759899,9.999e-05,2]
[343704141,1732888232274,-150.197265,9.999e-05,2]
[343704142,1732888232283,-293.759899,9.999e-05,2]
[343704143,1732888232293,-293.759899,9.999e-05,2]
[343704144,1732888232305,-293.759899,9.999e-05,2]
[343704145,1732888232315,-293.759899,9.999e-05,2]
[343704146,1732888232327,-293.759899,9.999e-05,2]
[343704147,1732888232336,-293.759899,9.999e-05,2]
[343704148,1732888232347,-293.759899,9.999e-05,2]
[343704149,1732888232357,-525.93147053,9.999e-05,2]
[343704150,1732888232367,-479.28101745,9.999e-05,2]
[343704151,1732888232380,-314.99098255,9.999e-05,2]
[343704152,1732888232392,-543.99,9.999e-05,2]
[343704153,1732888232401,-1914.41901745,0.0001,2]
[343704154,1732888232421,-250.0,0.0001,2]
[343704155,1732888232432,-8115.33036408,0.0001,2]
[343704156,1732888232441,-11362.34723592,0.0001,2]
[343704159,1732888237822,-500.0,9.973e-05,2]
[343704160,1732888237831,-350.62098035,9.999e-05,2]
[343704161,1732888237841,-1093.54104595,0.0001,2]
[343704162,1732888237852,-761.34532226,0.0001,2]
[343704163,1732888237899,-313260.44861596,0.0001,2]
[343704164,1732888237908,-3298138.09768133,0.0001,2]
[343704165,1732888237917,-335260.61262508,0.0001,2]
[343704166,1732888237926,-43971937.31156422,0.0001,2]
[343704167,1732888237936,-2454246.3078943,0.0001,2]
[343704168,1732888237945,-503.89837693,0.0001,2]
[343704169,1732888237954,-1000.0,0.0001,2]
[343704170,1732888237963,-1000.0,0.0001,2]
[343704171,1732888237972,-1515538.19463378,0.0001,2]
[343704172,1732888237981,-1000.0,0.0001,2]
[343704173,1732888237991,-1000.0,0.0001,2]
[343704174,1732888238000,-321.95478253,0.0001,2]
[343704175,1732888238008,-836132.43342374,0.0001,2]
[343704176,1732888238017,-1000.0,0.0001,2]
[343704177,1732888238027,-1000.0,0.0001,2]
[343704178,1732888238035,-1000.0,0.0001,2]
[343704179,1732888238044,-1000.0,0.0001,2]
[343704180,1732888238053,-1000.0,0.0001,2]
[343704181,1732888238062,-1000.0,0.0001,2]
[343704182,1732888238071,-1000.0,0.0001,2]
[343704183,1732888238080,-1000.0,0.0001,2]
[343704184,1732888238089,-1000.0,0.0001,2]
[343704185,1732888238098,-1000.0,0.0001,2]
[343704186,1732888238107,-1000.0,0.0001,2]
[343704187,1732888238116,-1000.0,0.0001,2]
[343704188,1732888238126,-1000.0,0.0001,2]
[343704189,1732888238137,-1000.0,0.0001,2]
[343704190,1732888238147,-1000.0,0.0001,2]
[343704191,1732888238158,-1000.0,0.0001,2]
[343704192,1732888238168,-1000.0,0.0001,2]
[343704193,1732888238178,-1000.0,0.0001,2]
[343704195,1732888238187,-1000.0,0.0001,2]
[343704197,1732888238196,-1000.0,0.0001,2]
[343704199,1732888238205,-1000.0,0.0001,2]
[343704201,1732888238215,-1000.0,0.0001,2]
[343704202,1732888238224,-1000.0,0.0001,2]
[343704203,1732888238233,-1000.0,0.0001,2]
[343704204,1732888238245,-1000.0,0.0001,2]
[343704205,1732888238255,-1000.0,0.0001,2]
[343704207,1732888238264,-1000.0,0.0001,2]
[343704209,1732888238276,-1000.0,0.0001,2]
[343704211,1732888238284,-1000.0,0.0001,2]
[343704213,1732888238293,-1000.0,0.0001,2]
[343704214,1732888238302,-1000.0,0.0001,2]
[343704215,1732888238311,-1000.0,0.0001,2]
[343704216,1732888238320,-1000.0,0.0001,2]
[343704217,1732888238329,-1000.0,0.0001,2]
[343704218,1732888238338,-1000.0,0.0001,2]
[343704219,1732888238347,-1000.0,0.0001,2]
[343704220,1732888238356,-1000.0,0.0001,2]
[343704221,1732888238365,-1000.0,0.0001,2]
[343704222,1732888238374,-1146.99028099,0.0001,2]
[343704223,1732888238384,-1000.0,0.0001,2]
[343704224,1732888238393,-204.0,0.0001,2]
[343704225,1732888238402,-204.0,0.0001,2]
[343704226,1732888238411,-204.0,0.0001,2]
[343704227,1732888238422,-204.0,0.0001,2]
[343704228,1732888238432,-204.0,0.0001,2]
[343704229,1732888238446,-204.0,0.0001,2]
[343704230,1732888238455,-204.0,0.0001,2]
[343704231,1732888238465,-204.0,0.0001,2]
[343704232,1732888238474,-204.0,0.0001,2]
[343704233,1732888238484,-2859115.60555664,0.0001,2]
[343704234,1732888238503,-2197.12391031,0.0001,2]
[343704235,1732888238515,-3046.08,0.0001,2]
[343704236,1732888238526,-1518.42219604,0.0001,2]
[343704237,1732888238536,-4019.76200702,0.0001,2]
[343704238,1732888239771,-24242.021374,0.0001,2]
[343704239,1732888239856,-3288.1399,0.0001,2]
[343704240,1732888239867,-10251.00000002,0.0001,2]
[343704241,1732888240007,-1543.31630938,0.0001,2]
[343704242,1732888240024,-254.52,0.0001,2]
[343704243,1732888240042,-445.89265005,0.0001,2]
[343704244,1732888240053,-1216.01144988,0.0001,2]
[343704252,1732888242747,-600000.0,0.0001,2]
[343704253,1732888242758,-19419.2,0.0001,2]
[343704254,1732888242824,-3630.35387861,0.0001,2]
[343704255,1732888242835,-9166.77491123,0.0001,2]
[343704256,1732888242973,-186790.44372526,0.0001,2]
[343704257,1732888242985,-3738.9996,0.0001,2]
[343704321,1732888245886,-233.74732024,9.999e-05,2]
[343704322,1732888245897,-2700.10862155,9.999e-05,2]
[343704323,1732888245907,-6836.25303521,0.0001,2]
[343704324,1732888245960,-10723.667509,0.0001,2]
[343704337,1732888331367,8000.0,0.00018,25]
[343704341,1732888482316,2002.0,0.00024,60]
[343704358,1732888897238,1800.0,0.00024,60]
[343704381,1732889432005,-950.77,8.219e-05,2]
[343704382,1732889432015,-250.0,9.521e-05,2]
[343704383,1732889432024,-157.87,9.529e-05,2]
[343704384,1732889432033,-268.93259485,9.556e-05,2]
[343704385,1732889432044,-23631.06740515,9.556e-05,2]
[343704386,1732889432055,-1000.0,9.587e-05,2]
[343704387,1732889432065,-160.55,9.589e-05,2]
[343704388,1732889432074,-197.52,9.817e-05,2]
[343704389,1732889432085,-2694.4579,9.9e-05,2]
[343704390,1732889432094,-188.47469485,9.9e-05,2]
[343704391,1732889432148,-338.56670515,9.9e-05,2]
[343704392,1732889432157,-189.88270965,9.9e-05,2]
[343704393,1732889432209,-1427.3,9.9e-05,2]
[343704394,1732889432220,-882.81729035,9.9e-05,2]
[343704395,1732889432229,-1060.8829,9.9e-05,2]
[343704396,1732889432239,-645.5597,9.9e-05,2]
[343704397,1732889432249,-538.81,9.9e-05,2]
[343704398,1732889432258,-500.0,9.92e-05,2]
[343704399,1732889432267,-185.27880945,9.973e-05,2]
[343704400,1732889432277,-3687.8336436,9.996e-05,2]
[343704401,1732889432286,-155.83154682,9.999e-05,2]
[343704402,1732889432295,-521.33,9.999e-05,2]
[343704403,1732889432305,-934.675,9.999e-05,2]
[343704404,1732889432315,-170.762,9.999e-05,2]
[343704405,1732889432324,-5139.87469077,0.0001,2]
[343704406,1732889432333,-20789.31799535,0.0001,2]
[343704407,1732889432344,-74585.01971942,0.0001,2]
[343704408,1732889432357,-10763.5852714,0.0001,2]
[343704413,1732889438088,-313.98,0.0001,2]
[343704414,1732889438114,-1439.23571921,0.0001,2]
[343704415,1732889438126,-506.219,0.0001,2]
[343704416,1732889438234,-417451.05512974,0.0001,2]
[343704417,1732889438244,-16317073.23837786,0.0001,2]
[343704418,1732889438253,-44299457.7700952,0.0001,2]
[343704419,1732889438265,-2871.98467147,0.0001,2]
[343704420,1732889440001,-823.431,0.0001,2]
[343704421,1732889440051,-731.83499997,0.0001,2]
[343704422,1732889440158,-724.96704,0.0001,2]
[343704426,1732889443067,-1808.91060002,0.0001,2]
[343704427,1732889443079,-52843.62999998,0.0001,2]
[343704428,1732889443090,-6286.67412986,0.0001,2]
[343704429,1732889443171,-3151.9565101,0.0001,2]
[343704430,1732889443184,-3411.35650686,0.0001,2]
[343704431,1732889446010,-5071.7368381,0.0001,2]
[343704432,1732889446022,-1653.2893889,0.0001,2]
[343704433,1732889446033,-1213.4997,0.0001,2]
[343704434,1732889446044,-316.41,0.0001,2]
[343704435,1732889446056,-1692.08298268,0.0001,2]
[343704436,1732889446993,-487.0221,0.0001,2]
[343704455,1732889971385,155.73,0.00016658,30]
[343704475,1732890380504,50000.0,0.00019,30]
[343704500,1732890570561,155.73,0.00016658,30]
[343704507,1732890632295,-451.42116988,8.219e-05,2]
[343704508,1732890632453,-529.08883012,8.219e-05,2]
[343704509,1732890632462,-313.99,8.645e-05,2]
[343704510,1732890632472,-191.13,8.664e-05,2]
[343704511,1732890632482,-1000.0,8.668e-05,2]
[343704512,1732890632491,-1276.874803,8.704e-05,2]
[343704513,1732890632503,-261.235197,8.704e-05,2]
[343704514,1732890632513,-13078.39,8.756e-05,2]
[343704515,1732890632523,-250.0,8.795e-05,2]
[343704516,1732890632533,-519.89,8.812e-05,2]
[343704517,1732890632542,-250.0,8.858e-05,2]
[343704518,1732890632551,-250.0,8.924e-05,2]
[343704519,1732890632561,-1728.42151924,9e-05,2]
[343704520,1732890632570,-618.9582,9e-05,2]
[343704521,1732890632580,-200.0,9e-05,3]
[343704522,1732890632590,-193.02,9.014e-05,2]
[343704523,1732890632600,-500.0,9.1e-05,3]
[343704524,1732890632610,-800.0,9.2e-05,3]
[343704525,1732890632620,-911.43552387,9.3e-05,3]
[343704526,1732890632676,-188.56447613,9.3e-05,3]
[343704528,1732890632686,-1212.47552387,9.4e-05,3]
[343704530,1732890632698,-187.52447613,9.4e-05,3]
[343704532,1732890632707,-200.0,9.5e-05,3]
[343704534,1732890632717,-160.55,9.589e-05,2]
[343704536,1732890632727,-200.0,9.6e-05,3]
[343704537,1732890632736,-8007.0,9.606e-05,2]
[343704538,1732890632746,-769.55,9.67e-05,2]
[343704539,1732890632755,-3734.59,9.67e-05,2]
[343704540,1732890632766,-117.92034221,9.67e-05,2]
[343704541,1732890632777,-249.16965779,9.67e-05,2]
[343704542,1732890632787,-200.0,9.7e-05,3]
[343704543,1732890632797,-168.879303,9.722e-05,2]
[343704544,1732890632806,-1500.0,9.742e-05,2]
[343704545,1732890632816,-150.0,9.742e-05,2]
[343704546,1732890632825,-191.13,9.747e-05,2]
[343704547,1732890632834,-1000.0,9.751e-05,2]
[343704548,1732890632844,-717.95787193,9.784e-05,2]
[343704549,1732890632853,-200.0,9.8e-05,3]
[343704550,1732890632862,-1600.0,9.863e-05,2]
[343704551,1732890632871,-759.8264,9.9e-05,2]
[343704552,1732890632880,-4772.5596,9.9e-05,2]
[343704553,1732890632890,-2500.0,9.9e-05,2]
[343704554,1732890632899,-1100.0,9.9e-05,3]
[343704555,1732890632908,-500.0,9.92e-05,2]
[343704556,1732890632918,-267.84623981,9.971e-05,2]
[343704557,1732890632929,-367.00892642,9.972e-05,2]
[343704558,1732890632941,-500.0,9.973e-05,2]
[343704559,1732890632951,-510.70775226,9.973e-05,2]
[343704560,1732890632961,-500.0,9.973e-05,2]
[343704561,1732890632970,-500.0,9.973e-05,2]
[343704562,1732890632979,-322.36729556,9.974e-05,2]
[343704563,1732890632990,-367.00892642,9.974e-05,2]
[343704564,1732890632999,-34972.16443519,9.976e-05,2]
[343704565,1732890633012,-71333.96963765,9.976e-05,2]
[343704566,1732890633028,-159703.22835391,9.976e-05,2]
[343704567,1732890633037,-61811.75192253,9.977e-05,2]
[343704568,1732890633176,-550.0,9.977e-05,2]
[343704569,1732890633189,-503.39701871,9.977e-05,2]
[343704572,1732890638357,-610.02,8.621e-05,2]
[343704573,1732890638367,-83.92794079,8.621e-05,2]